[Event "Catalan Youth Championship 2024"]
[Site "Cambrils"]
[Date "2024.03.26"]
[Round "6.1"]
[White "Caballero Mogilnikov, Liam"]
[Black "Ortega Campallo, David"]
[Result "1-0"]
[ECO "B21"]
[WhiteElo "1659"]
[BlackElo "1522"]
[Annotator "NA RC"]
[PlyCount "85"]
[EventDate "2024.03.13"]
[EventType "swiss"]
[EventCountry "ESP"]
[SourceTitle "playchess.com"]
[Source "ChessBase"]
[SourceQuality "1"]
[TimeControl "5400+30"]

1. e4 {[%emt 0:00:33]} c5 {[%emt 0:00:22]} 2. d4 {[%emt 0:00:55]} cxd4 {[%emt 0:00:51]} 3. c3 {[%emt 0:00:41]} dxc3 {[%emt 0:01:04]} 4. Nxc3 {[%emt 0:00:35]} Nc6 {[%emt 0:00:59]} 5. Nf3 {[%emt 0:00:52]} e6 {[%emt 0:02:53]} 6. Bc4 {[%emt 0:01:37]} Bb4 {[%emt 0:02:52]} 7. O-O {[%emt 0:01:48]} Bxc3 {[%emt 1:24:59]} 8. bxc3 {[%emt 0:01:01]} Nge7 {[%emt 0:00:00]} 9. Re1 {[%emt 0:01:25]} O-O {[%emt 0:00:00]} 10. e5 {[%emt 0:02:31]} h6 {[%emt 0:00:00]} 11. Be3 {[%emt 0:07:55]} Nf5 {[%emt 0:00:00]} 12. Bc5 {[%emt 0:02:27]} Re8 {[%emt 0:00:00]} 13. Bd6 {[%emt 0:12:28]} Nxd6 {[%emt 0:00:00]} 14. Qxd6 {[%emt 0:03:23]} Qe7 {[%emt 0:00:00]} 15. Qd3 {[%emt 0:01:39]} Na5 {[%emt 0:04:00]} 16. Bb3 {[%emt 0:01:10]} Nxb3 {[%emt 0:00:00]} 17. axb3 {[%emt 0:01:06]} b6 {[%emt 0:00:00]} 18. Qe4 {[%emt 0:02:16]} Rb8 {[%emt 0:00:00]} 19. Rxa7 {[%emt 0:01:40]} Qc5 {[%emt 0:00:00]} 20. Qd4 {[%emt 0:03:08]} Qxd4 {[%emt 0:00:00]} 21. Nxd4 {[%emt 0:00:28]} Bb7 {[%emt 0:00:00]} 22. Nb5 {[%emt 0:00:52]} Bc6 {[%emt 0:00:00]} 23. Nd6 {[%emt 0:00:59]} Red8 {[%emt 0:00:00]} 24. b4 {[%emt 0:02:56]} Ra8 {[%emt 0:00:00]} 25. Rxa8 {[%emt 0:01:13]} Rxa8 {[%emt 0:00:00]} 26. b5 {[%emt 0:00:19]} Bd5 {[%emt 0:00:00]} 27. c4 {[%emt 0:00:23]} Bxc4 {[%emt 0:00:00]} 28. Nxc4 {[%emt 0:00:21]} Rb8 {[%emt 0:00:00]} 29. Rd1 {[%emt 0:00:43]} Rb7 {[%emt 0:00:00]} 30. g3 {[%emt 0:00:45]} Rc7 {[%emt 0:00:00]} 31. Nxb6 {[%emt 0:00:35]} Rc5 {[%emt 0:00:00]} 32. Nxd7 {[%emt 0:01:13]} Rxb5 {[%emt 0:00:00]} 33. Rc1 {[%emt 0:00:38]} Rd5 {[%emt 0:00:00]} 34. Rc8+ {[%emt 0:00:17]} Kh7 {[%emt 0:00:00]} 35. Nf8+ {[%emt 0:00:17]} Kh8 {[%emt 0:00:00]} 36. Nxe6+ {[%emt 0:00:43]} Kh7 {[%emt 0:00:00]} 37. Nf8+ {[%emt 0:00:21]} Kh8 {[%emt 0:11:00]} 38. h4 {[%emt 0:47:17]} Rd1+ {[%emt 0:00:00]} 39. Kg2 {[%emt 0:00:00]} g5 {[%emt 0:00:00]} 40. hxg5 {[%emt 0:00:00]} hxg5 {[%emt 0:00:00]} 41. Ne6+ {[%emt 0:00:00]} Kh7 {[%emt 0:00:00]} 42. Nxg5+ {[%emt 0:00:00]} Kg6 {[%emt 0:00:00]} 43. Nf3 {[%emt 0:00:00]} 1-0

[Event "Catalan Youth Championship 2024"]
[Site "Cambrils"]
[Date "2024.03.26"]
[Round "6.2"]
[White "Guiu Ruiz, Lluc"]
[Black "Escobar Pavlik, Luka"]
[Result "1-0"]
[ECO "B12"]
[WhiteElo "1613"]
[BlackElo "1612"]
[Annotator "NA RC"]
[PlyCount "91"]
[EventDate "2024.03.13"]
[EventType "swiss"]
[EventCountry "ESP"]
[SourceTitle "playchess.com"]
[Source "ChessBase"]
[SourceQuality "1"]
[TimeControl "5400+30"]

1. e4 {[%emt 0:00:03]} c6 {[%emt 0:00:08]} 2. d4 {[%emt 0:00:17]} d5 {[%emt 0:00:17]} 3. e5 {[%emt 0:00:47]} Bf5 {[%emt 0:00:50]} 4. Nf3 {[%emt 0:00:42]} e6 {[%emt 0:01:08]} 5. Be2 {[%emt 0:01:12]} c5 {[%emt 0:05:14]} 6. c3 {[%emt 0:03:49]} Nc6 {[%emt 0:03:04]} 7. O-O {[%emt 0:03:20]} cxd4 {[%emt 0:03:51]} 8. cxd4 {[%emt 0:00:14]} h6 {[%emt 0:07:30]} 9. a3 {[%emt 0:02:24]} Nge7 {[%emt 0:01:09]} 10. b4 {[%emt 0:03:55]} Rc8 {[%emt 0:06:08]} 11. Be3 {[%emt 0:01:19]} Ng6 {[%emt 0:01:33]} 12. Nbd2 {[%emt 0:01:39]} Be7 {[%emt 0:04:52]} 13. Rc1 {[%emt 0:02:47]} O-O {[%emt 0:01:36]} 14. Re1 {[%emt 0:05:02]} Qd7 {[%emt 0:09:42]} 15. Nb3 {[%emt 0:03:37]} b6 {[%emt 0:01:16]} 16. Nbd2 {[%emt 0:01:25]} Nb8 {[%emt 0:03:36]} 17. Qb3 {[%emt 0:02:12]} Rc7 {[%emt 0:01:34]} 18. Rxc7 {[%emt 0:03:55]} Qxc7 {[%emt 0:01:57]} 19. Nf1 {[%emt 0:03:11]} Qd7 {[%emt 0:01:39]} 20. Rc1 {[%emt 0:05:56]} Rc8 {[%emt 0:01:47]} 21. Rxc8+ {[%emt 0:01:08]} Qxc8 {[%emt 0:00:02]} 22. Bd3 {[%emt 0:08:14]} Bxd3 {[%emt 0:00:59]} 23. Qxd3 {[%emt 0:00:03]} Qc6 {[%emt 0:04:45]} 24. h3 {[%emt 0:02:52]} Nf8 {[%emt 0:03:30]} 25. Ng3 {[%emt 0:01:27]} Nfd7 {[%emt 0:01:26]} 26. h4 {[%emt 0:10:18]} b5 {[%emt 0:03:03]} 27. h5 {[%emt 0:00:48]} Qc4 {[%emt 0:00:28]} 28. Qd2 {[%emt 0:00:32]} Bf8 {[%emt 0:00:28]} 29. Ne2 {[%emt 0:01:47]} f5 {[%emt 0:03:04]} 30. Nf4 {[%emt 0:02:29]} Qc6 {[%emt 0:00:24]} 31. Ng6 {[%emt 0:00:45]} Kh7 {[%emt 0:00:12]} 32. Qd3 {[%emt 0:05:21]} Qc4 {[%emt 0:02:40]} 33. Qb1 {[%emt 0:01:37]} Kg8 {[%emt 0:00:22]} 34. Nf4 {[%emt 0:05:01]} Qc6 {[%emt 0:00:41]} 35. g4 {[%emt 0:00:27]} fxg4 {[%emt 0:01:51]} 36. Nh4 {[%emt 0:02:14]} Na6 {[%emt 0:06:05]} 37. Qg6 {[%emt 0:00:39]} Nc7 {[%emt 0:00:11]} 38. Nf5 {[%emt 0:00:35]} Kh8 {[%emt 0:01:05]} 39. Nxh6 {[%emt 0:09:03]} gxh6 {[%emt 0:00:41]} 40. Qf7 {[%emt 0:00:17]} Bg7 {[%emt 0:00:58]} 41. Ng6+ {[%emt 0:00:21]} Kh7 {[%emt 0:00:31]} 42. Ne7 {[%emt 0:04:10]} Qa8 {[%emt 0:00:07]} 43. Bxh6 {[%emt 0:00:25]} Ne8 {[%emt 0:00:59]} 44. Qg6+ {[%emt 0:00:27]} Kh8 {[%emt 0:00:09]} 45. Bxg7+ {[%emt 0:00:09]} Nxg7 {[%emt 0:00:29]} 46. Qh6# {[%emt 0:00:05]} 1-0

[Event "Catalan Youth Championship 2024"]
[Site "Cambrils"]
[Date "2024.03.26"]
[Round "6.3"]
[White "Perez Monakhov, Andres"]
[Black "Madorran Gomez, Marcel"]
[Result "1-0"]
[ECO "A46"]
[WhiteElo "1765"]
[BlackElo "1530"]
[Annotator "NA RC"]
[PlyCount "55"]
[EventDate "2024.03.13"]
[EventType "swiss"]
[EventCountry "ESP"]
[SourceTitle "playchess.com"]
[Source "ChessBase"]
[SourceQuality "1"]
[TimeControl "5400+30"]

1. d4 {[%emt 0:00:02]} Nf6 {[%emt 0:00:06]} 2. Bg5 {[%emt 0:00:11]} e6 {[%emt 0:00:14]} 3. e4 {[%emt 0:00:41]} h6 {[%emt 0:00:17]} 4. Bxf6 {[%emt 0:00:24]} Qxf6 {[%emt 0:00:09]} 5. Nf3 {[%emt 0:00:17]} g6 {[%emt 0:00:51]} 6. Bd3 {[%emt 0:00:39]} Bg7 {[%emt 0:00:24]} 7. c3 {[%emt 0:00:46]} Nc6 {[%emt 0:00:54]} 8. Nbd2 {[%emt 0:01:04]} b6 {[%emt 0:00:58]} 9. e5 {[%emt 0:00:40]} Qe7 {[%emt 0:00:14]} 10. Qc2 {[%emt 0:00:36]} d6 {[%emt 0:00:40]} 11. Bb5 {[%emt 0:03:11]} Bb7 {[%emt 0:02:00]} 12. Qa4 {[%emt 0:01:45]} Qd7 {[%emt 0:00:37]} 13. d5 {[%emt 0:05:06]} Qd8 {[%emt 0:04:27]} 14. Bxc6+ {[%emt 0:00:13]} Bxc6 {[%emt 0:00:10]} 15. Qxc6+ {[%emt 0:00:07]} Kf8 {[%emt 0:00:14]} 16. exd6 {[%emt 0:00:49]} cxd6 {[%emt 0:00:13]} 17. dxe6 {[%emt 0:00:43]} fxe6 {[%emt 0:00:25]} 18. O-O {[%emt 0:00:46]} Rc8 {[%emt 0:00:13]} 19. Qe4 {[%emt 0:00:10]} Qe7 {[%emt 0:00:26]} 20. Rfe1 {[%emt 0:00:24]} Re8 {[%emt 0:00:33]} 21. Nh4 {[%emt 0:00:40]} Qg5 {[%emt 0:01:24]} 22. Ndf3 {[%emt 0:00:42]} Qf6 {[%emt 0:01:41]} 23. Nxg6+ {[%emt 0:00:36]} Kg8 {[%emt 0:00:39]} 24. Nxh8 {[%emt 0:00:20]} Kxh8 {[%emt 0:02:07]} 25. Rad1 {[%emt 0:00:16]} d5 {[%emt 0:00:44]} 26. Rxd5 {[%emt 0:00:22]} exd5 {[%emt 0:07:04]} 27. Qxe8+ {[%emt 0:00:15]} Kh7 {[%emt 0:00:22]} 28. Qe3 {[%emt 0:00:18]} 1-0

[Event "Catalan Youth Championship 2024"]
[Site "Cambrils"]
[Date "2024.03.26"]
[Round "6.4"]
[White "Claparols Merino, Inar"]
[Black "Garcia Corpas, Nicolas"]
[Result "0-1"]
[ECO "B23"]
[WhiteElo "1530"]
[BlackElo "1679"]
[Annotator "NA RC"]
[PlyCount "92"]
[EventDate "2024.03.13"]
[EventType "swiss"]
[EventCountry "ESP"]
[SourceTitle "playchess.com"]
[Source "ChessBase"]
[SourceQuality "1"]
[TimeControl "5400+30"]

1. e4 {[%emt 0:00:01]} c5 {[%emt 0:00:16]} 2. Nc3 {[%emt 0:00:15]} Nc6 {[%emt 0:00:31]} 3. f4 {[%emt 0:00:36]} d6 {[%emt 0:02:34]} 4. Be2 {[%emt 0:03:22]} Nd4 {[%emt 0:07:08]} 5. Nf3 {[%emt 0:09:03]} Nxf3+ {[%emt 0:03:28]} 6. Bxf3 {[%emt 0:00:21]} e6 {[%emt 0:03:27]} 7. g3 {[%emt 0:05:10]} Ne7 {[%emt 0:01:16]} 8. O-O {[%emt 0:02:21]} g6 {[%emt 0:00:14]} 9. d4 {[%emt 0:02:35]} c4 {[%emt 0:01:49]} 10. Re1 {[%emt 0:04:05]} Rb8 {[%emt 0:06:34]} 11. Qe2 {[%emt 0:03:53]} b5 {[%emt 0:02:45]} 12. b4 {[%emt 0:01:22]} Nc6 {[%emt 0:04:53]} 13. d5 {[%emt 0:05:34]} Bg7 {[%emt 0:04:28]} 14. Bb2 {[%emt 0:02:21]} Nd4 {[%emt 0:04:55]} 15. Qf2 {[%emt 0:02:03]} Qb6 {[%emt 0:01:57]} 16. Kh1 {[%emt 0:00:57]} Nxf3 {[%emt 0:02:24]} 17. Qxf3 {[%emt 0:00:19]} O-O {[%emt 0:00:53]} 18. Red1 {[%emt 0:04:50]} Bb7 {[%emt 0:08:02]} 19. dxe6 {[%emt 0:50:52]} f5 {[%emt 0:04:11]} 20. Nd5 {[%emt 0:00:00]} Bxd5 {[%emt 0:01:00]} 21. exd5 {[%emt 0:00:00]} Bxb2 {[%emt 0:00:40]} 22. Rab1 {[%emt 0:00:00]} Bg7 {[%emt 0:01:50]} 23. Qe2 {[%emt 0:00:00]} a5 {[%emt 0:01:09]} 24. bxa5 {[%emt 0:00:00]} Qxa5 {[%emt 0:00:18]} 25. e7 {[%emt 0:00:00]} Rfe8 {[%emt 0:01:40]} 26. Qe6+ {[%emt 0:00:00]} Kh8 {[%emt 0:00:51]} 27. Qxd6 {[%emt 0:00:00]} Qa7 {[%emt 0:02:59]} 28. Re1 {[%emt 0:00:00]} Bc3 {[%emt 0:03:57]} 29. Rbd1 {[%emt 0:00:00]} Bxe1 {[%emt 0:02:28]} 30. Qf6+ {[%emt 0:00:00]} Kg8 {[%emt 0:00:10]} 31. h4 {[%emt 0:00:00]} Qxe7 {[%emt 0:00:12]} 32. Qd4 {[%emt 0:00:00]} Qe4+ {[%emt 0:01:41]} 33. Qxe4 {[%emt 0:00:00]} Rxe4 {[%emt 0:00:02]} 34. d6 {[%emt 0:00:00]} Bxg3 {[%emt 0:00:12]} 35. d7 {[%emt 0:00:00]} Re1+ {[%emt 0:00:50]} 36. Rxe1 {[%emt 0:00:00]} Bxe1 {[%emt 0:00:04]} 37. Kg2 {[%emt 0:00:00]} Bxh4 {[%emt 0:00:08]} 38. Kf3 {[%emt 0:00:00]} Rd8 {[%emt 0:00:08]} 39. Ke3 {[%emt 0:00:00]} Rxd7 {[%emt 0:00:05]} 40. c3 {[%emt 0:00:00]} Be1 {[%emt 0:00:05]} 41. a4 {[%emt 0:00:00]} bxa4 {[%emt 0:00:05]} 42. Kf3 {[%emt 0:00:00]} a3 {[%emt 0:00:09]} 43. Kg2 {[%emt 0:00:00]} a2 {[%emt 0:00:18]} 44. Kf1 {[%emt 0:00:00]} a1=Q {[%emt 0:00:11]} 45. Ke2 {[%emt 0:00:00]} Rd2+ {[%emt 0:00:15]} 46. Kf3 {[%emt 0:00:00]} Qxc3# {[%emt 0:30:18]} 0-1

[Event "Catalan Youth Championship 2024"]
[Site "Cambrils"]
[Date "2024.03.26"]
[Round "6.5"]
[White "Bru Montoya, Pau"]
[Black "Tallada Serret, Gerard"]
[Result "1/2-1/2"]
[ECO "B22"]
[WhiteElo "1850"]
[BlackElo "2085"]
[Annotator "RC"]
[PlyCount "78"]
[EventDate "2024.03.13"]
[EventType "swiss"]
[EventCountry "ESP"]
[SourceTitle "playchess.com"]
[Source "ChessBase"]
[SourceQuality "1"]
[TimeControl "5400+30"]

1. e4 {[%emt 0:00:05]} c5 {[%emt 0:00:09]} 2. c3 {[%emt 0:00:10]} Nf6 {[%emt 0:00:14]} 3. e5 {[%emt 0:00:09]} Nd5 {[%emt 0:00:06]} 4. d4 {[%emt 0:00:21]} cxd4 {[%emt 0:00:18]} 5. Qxd4 {[%emt 0:00:22]} e6 {[%emt 0:02:15]} 6. Nf3 {[%emt 0:00:17]} Nc6 {[%emt 0:00:11]} 7. Qe4 {[%emt 0:00:10]} d6 {[%emt 0:03:34]} 8. Bb5 {[%emt 0:00:28]} Bd7 {[%emt 0:02:23]} 9. c4 {[%emt 0:00:55]} Nb6 {[%emt 0:08:47]} 10. exd6 {[%emt 0:01:11]} a6 {[%emt 1:17:33]} 11. Bg5 {[%emt 1:31:52]} Qb8 {[%emt 0:00:00]} 12. Bxc6 {[%emt 0:00:00]} Bxc6 {[%emt 0:00:00]} 13. Qd4 {[%emt 0:00:00]} Nd7 {[%emt 0:00:00]} 14. Nc3 {[%emt 0:01:30]} Bxf3 {[%emt 0:00:00]} 15. gxf3 {[%emt 0:00:00]} Qxd6 {[%emt 0:00:00]} 16. O-O-O {[%emt 0:00:00]} Qxd4 {[%emt 0:00:00]} 17. Rxd4 {[%emt 0:00:00]} Bc5 {[%emt 0:00:00]} 18. Rd2 {[%emt 0:02:00]} f6 {[%emt 0:00:00]} 19. Bf4 {[%emt 0:00:00]} Bb4 {[%emt 0:04:30]} 20. Rhd1 {[%emt 0:00:00]} O-O-O {[%emt 0:00:00]} 21. Kc2 {[%emt 0:00:00]} Rhe8 {[%emt 0:00:00]} 22. Bd6 {[%emt 0:02:00]} Bxd6 {[%emt 0:00:00]} 23. Rxd6 {[%emt 0:00:00]} Kc7 {[%emt 0:00:00]} 24. f4 {[%emt 0:00:00]} Nc5 {[%emt 0:00:00]} 25. Rxd8 {[%emt 0:00:00]} Rxd8 {[%emt 0:00:00]} 26. Rxd8 {[%emt 0:00:00]} Kxd8 {[%emt 0:00:00]} 27. b4 {[%emt 0:00:00]} Nd7 {[%emt 0:00:00]} 28. Kb3 {[%emt 0:00:00]} Kc7 {[%emt 0:00:00]} 29. c5 {[%emt 0:00:00]} Nf8 {[%emt 0:00:00]} 30. Kc4 {[%emt 0:00:00]} Ng6 {[%emt 0:00:00]} 31. Ne2 {[%emt 0:00:00]} Kd7 {[%emt 0:00:00]} 32. a4 {[%emt 0:00:00]} Ne7 {[%emt 0:06:30]} 33. Nd4 {[%emt 0:00:00]} g6 {[%emt 0:00:30]} 34. b5 {[%emt 0:00:00]} axb5+ {[%emt 0:00:00]} 35. Kxb5 {[%emt 0:00:00]} Nd5 {[%emt 0:00:00]} 36. Ne2 {[%emt 0:00:00]} Kc7 {[%emt 0:00:00]} 37. a5 {[%emt 0:07:30]} Kd7 {[%emt 0:00:00]} 38. Kc4 {[%emt 0:00:00]} Kc7 {[%emt 0:00:00]} 39. Kb5 {[%emt 0:00:00]} Kd7 {[%emt 0:00:00]} 1/2-1/2

[Event "Catalan Youth Championship 2024"]
[Site "Cambrils"]
[Date "2024.03.26"]
[Round "6.6"]
[White "Presas Gharbi, Rayan"]
[Black "Monclus Janssens, Jack"]
[Result "1/2-1/2"]
[ECO "B13"]
[WhiteElo "1705"]
[BlackElo "1707"]
[Annotator "NA RC"]
[PlyCount "165"]
[EventDate "2024.03.13"]
[EventType "swiss"]
[EventCountry "ESP"]
[SourceTitle "playchess.com"]
[Source "ChessBase"]
[SourceQuality "1"]
[TimeControl "5400+30"]

1. e4 {[%emt 1:31:00]} c6 {[%emt 1:31:00]} 2. d4 {[%emt 0:00:30]} d5 {[%emt 0:00:30]} 3. exd5 {[%emt 0:00:30]} cxd5 {[%emt 0:00:30]} 4. Bd3 {[%emt 0:00:30]} Nc6 {[%emt 0:00:30]} 5. c3 {[%emt 0:00:30]} Nf6 {[%emt 0:00:30]} 6. Bf4 {[%emt 0:00:30]} g6 {[%emt 0:00:30]} 7. Nd2 {[%emt 0:00:30]} Bg7 {[%emt 0:00:30]} 8. Ngf3 {[%emt 0:00:30]} Bg4 {[%emt 0:00:30]} 9. Qb3 {[%emt 0:00:30]} Qb6 {[%emt 0:00:30]} 10. Ne5 {[%emt 0:00:30]} Rd8 {[%emt 0:00:30]} 11. Qxb6 {[%emt 0:00:30]} axb6 {[%emt 0:00:30]} 12. Nxc6 {[%emt 0:00:30]} bxc6 {[%emt 0:00:30]} 13. h3 {[%emt 0:00:30]} Bf5 {[%emt 0:00:30]} 14. Bxf5 {[%emt 0:00:30]} gxf5 {[%emt 0:00:30]} 15. Nb3 {[%emt 0:00:30]} Rc8 {[%emt 0:00:30]} 16. a4 {[%emt 0:00:30]} e6 {[%emt 0:00:30]} 17. a5 {[%emt 0:00:30]} bxa5 {[%emt 0:00:30]} 18. Rxa5 {[%emt 0:00:30]} Nd7 {[%emt 0:00:30]} 19. O-O {[%emt 0:00:30]} O-O {[%emt 0:00:30]} 20. Nc5 {[%emt 0:00:30]} Nxc5 {[%emt 0:00:30]} 21. Rxc5 {[%emt 0:00:30]} Rfe8 {[%emt 0:00:30]} 22. Ra1 {[%emt 0:00:30]} Bf8 {[%emt 0:00:30]} 23. Rca5 {[%emt 0:00:30]} f6 {[%emt 0:00:30]} 24. Ra6 {[%emt 0:00:30]} c5 {[%emt 0:00:30]} 25. Re1 {[%emt 0:00:30]} Kf7 {[%emt 0:00:30]} 26. dxc5 {[%emt 0:00:30]} Rxc5 {[%emt 0:00:30]} 27. Bd6 {[%emt 0:00:30]} Bxd6 {[%emt 0:00:30]} 28. Rxd6 {[%emt 0:00:30]} Re7 {[%emt 0:00:30]} 29. Re2 {[%emt 0:00:30]} Ra5 {[%emt 0:00:30]} 30. f3 {[%emt 0:00:30]} f4 {[%emt 0:00:30]} 31. Kf2 {[%emt 0:00:30]} Rb5 {[%emt 0:00:30]} 32. Ke1 {[%emt 0:00:30]} e5 {[%emt 0:00:30]} 33. Rd2 {[%emt 0:00:30]} e4 {[%emt 0:00:30]} 34. R6xd5 {[%emt 0:00:30]} exf3+ {[%emt 0:00:30]} 35. Kf2 {[%emt 0:00:30]} Rxd5 {[%emt 0:00:30]} 36. Rxd5 {[%emt 0:00:30]} fxg2 {[%emt 0:00:30]} 37. Kxg2 {[%emt 0:00:30]} Re2+ {[%emt 0:00:30]} 38. Kf3 {[%emt 0:00:30]} Rxb2 {[%emt 0:00:30]} 39. Kxf4 {[%emt 0:00:30]} Rb3 {[%emt 0:00:30]} 40. Rd3 {[%emt 0:00:30]} Ke6 {[%emt 0:00:30]} 41. Re3+ {[%emt 0:00:30]} Kf7 {[%emt 0:00:30]} 42. Kf5 {[%emt 0:00:30]} h5 {[%emt 0:00:30]} 43. Rd3 {[%emt 0:00:30]} Rb5+ {[%emt 0:00:30]} 44. Ke4 {[%emt 0:00:30]} Ke6 {[%emt 0:00:30]} 45. c4 {[%emt 0:00:30]} Re5+ {[%emt 0:00:30]} 46. Kf4 {[%emt 0:00:30]} Rf5+ {[%emt 0:00:30]} 47. Kg3 {[%emt 0:00:30]} Ke7 {[%emt 0:00:30]} 48. Rd4 {[%emt 0:00:30]} Ke6 {[%emt 0:00:30]} 49. Re4+ {[%emt 0:00:30]} Kd6 {[%emt 0:00:30]} 50. Rf4 {[%emt 0:00:30]} Rg5+ {[%emt 0:00:30]} 51. Kf3 {[%emt 0:00:30]} Kc5 {[%emt 0:00:30]} 52. Re4 {[%emt 0:00:30]} Rf5+ {[%emt 0:00:30]} 53. Kg3 {[%emt 0:00:30]} Rg5+ {[%emt 0:00:30]} 54. Kh4 {[%emt 0:00:30]} Re5 {[%emt 0:00:30]} 55. Rf4 {[%emt 0:00:30]} Kb4 {[%emt 0:00:30]} 56. Kg3 {[%emt 0:00:30]} Rg5+ {[%emt 0:00:30]} 57. Kf3 {[%emt 0:00:30]} Kc5 {[%emt 0:00:30]} 58. Re4 {[%emt 0:00:30]} Re5 {[%emt 0:00:30]} 59. Rf4 {[%emt 0:00:30]} Rg5 {[%emt 0:00:30]} 60. h4 {[%emt 0:00:30]} Re5 {[%emt 0:00:30]} 61. Rxf6 {[%emt 0:00:30]} Kxc4 {[%emt 0:00:30]} 62. Kf4 {[%emt 0:00:30]} Kd4 {[%emt 0:00:30]} 63. Rd6+ {[%emt 0:00:30]} Rd5 {[%emt 0:00:30]} 64. Ra6 {[%emt 0:00:30]} Rc5 {[%emt 0:00:30]} 65. Ra4+ {[%emt 0:00:30]} Kd5 {[%emt 0:00:30]} 66. Re4 {[%emt 0:00:30]} Kd6 {[%emt 0:00:30]} 67. Ra4 {[%emt 0:00:30]} Ke6 {[%emt 0:00:30]} 68. Ra6+ {[%emt 0:00:30]} Kf7 {[%emt 0:00:30]} 69. Ra1 {[%emt 0:00:30]} Kf6 {[%emt 0:00:30]} 70. Ra6+ {[%emt 0:00:30]} Kf7 {[%emt 0:00:30]} 71. Rd6 {[%emt 0:00:30]} Kg7 {[%emt 0:00:30]} 72. Re6 {[%emt 0:00:30]} Rc4+ {[%emt 0:00:30]} 73. Kg5 {[%emt 0:00:30]} Rc5+ {[%emt 0:00:30]} 74. Kf4 {[%emt 0:00:30]} Rc4+ {[%emt 0:00:30]} 75. Re4 {[%emt 0:00:30]} Rxe4+ {[%emt 0:00:30]} 76. Kxe4 {[%emt 0:00:30]} Kh8 {[%emt 0:00:30]} 77. Kf5 {[%emt 0:00:30]} Kg8 {[%emt 0:00:30]} 78. Kg6 {[%emt 0:00:30]} Kh8 {[%emt 0:00:30]} 79. Kxh5 {[%emt 0:00:30]} Kg8 {[%emt 0:00:30]} 80. Kg6 {[%emt 0:00:30]} Kh8 {[%emt 0:00:30]} 81. h5 {[%emt 0:00:30]} Kg8 {[%emt 0:00:30]} 82. h6 {[%emt 0:00:30]} Kh8 {[%emt 0:00:30]} 83. h7 {[%emt 0:00:30]} 1/2-1/2

[Event "Catalan Youth Championship 2024"]
[Site "Cambrils"]
[Date "2024.03.26"]
[Round "6.7"]
[White "Hijarrubia Alvarez-Cuevas, Gonzalo"]
[Black "Mulet Polo, Pau"]
[Result "1/2-1/2"]
[ECO "B36"]
[WhiteElo "1827"]
[BlackElo "1768"]
[Annotator "NA RC"]
[PlyCount "41"]
[EventDate "2024.03.13"]
[EventType "swiss"]
[EventCountry "ESP"]
[SourceTitle "playchess.com"]
[Source "ChessBase"]
[SourceQuality "1"]
[TimeControl "5400+30"]

1. e4 {[%emt 0:00:03]} c5 {[%emt 0:00:03]} 2. Nf3 {[%emt 0:00:08]} Nc6 {[%emt 0:00:08]} 3. d4 {[%emt 0:00:09]} cxd4 {[%emt 0:00:12]} 4. Nxd4 {[%emt 0:00:05]} g6 {[%emt 0:00:31]} 5. c4 {[%emt 0:00:07]} Nf6 {[%emt 0:00:30]} 6. Nc3 {[%emt 0:00:07]} d6 {[%emt 0:00:34]} 7. Be2 {[%emt 0:00:21]} Nxd4 {[%emt 0:00:19]} 8. Qxd4 {[%emt 0:00:06]} Bg7 {[%emt 0:00:38]} 9. Be3 {[%emt 0:00:07]} O-O {[%emt 0:01:34]} 10. Qd3 {[%emt 0:00:19]} a5 {[%emt 0:01:34]} 11. O-O {[%emt 0:00:17]} a4 {[%emt 0:01:18]} 12. Bd4 {[%emt 0:00:40]} Be6 {[%emt 0:09:51]} 13. Rfd1 $11 {[%emt 0:09:43]} (13. f4 $1 $14 {was preferrable.}) 13... Qa5 {[%emt 0:11:48]} 14. f4 {[%emt 0:13:53]} Rfc8 {[%emt 0:10:42]} 15. Nd5 {[%emt 0:02:28]} Bxd5 {[%emt 0:03:21]} 16. exd5 {[%emt 0:01:43]} Nd7 {[%emt 0:19:34]} 17. Bxg7 {[%emt 0:00:53]} Kxg7 {[%emt 0:00:13]} 18. Qd4+ {[%emt 0:00:15]} Kg8 {[%emt 0:02:21]} 19. Kh1 {[%emt 0:01:33]} Qb6 {[%emt 0:09:45]} 20. Qd2 {[%emt 0:07:18]} Nc5 {[%emt 0:01:39]} 21. Qd4 {[%emt 0:02:03]} 1/2-1/2

[Event "Catalan Youth Championship 2024"]
[Site "Cambrils"]
[Date "2024.03.26"]
[Round "6.8"]
[White "Linares Miralles, Jordi"]
[Black "Torres Herrera, Guillem"]
[Result "1/2-1/2"]
[ECO "C02"]
[WhiteElo "1645"]
[BlackElo "1780"]
[Annotator "NA RC"]
[PlyCount "93"]
[EventDate "2024.03.13"]
[EventType "swiss"]
[EventCountry "ESP"]
[SourceTitle "playchess.com"]
[Source "ChessBase"]
[SourceQuality "1"]
[TimeControl "5400+30"]

1. e4 {[%emt 0:00:03]} e6 {[%emt 0:01:51]} 2. d4 {[%emt 0:00:06]} d5 {[%emt 0:00:27]} 3. e5 {[%emt 0:00:16]} c5 {[%emt 0:00:43]} 4. c3 {[%emt 0:00:07]} Nc6 {[%emt 0:00:38]} 5. Nf3 {[%emt 0:00:09]} Qb6 {[%emt 0:00:42]} 6. Bd3 {[%emt 0:00:07]} cxd4 {[%emt 0:03:56]} 7. O-O {[%emt 0:00:23]} Bd7 {[%emt 0:02:52]} 8. Re1 {[%emt 0:00:31]} Nge7 {[%emt 0:02:34]} 9. h4 {[%emt 0:00:23]} Nf5 {[%emt 0:02:12]} 10. Bxf5 {[%emt 0:02:09]} exf5 {[%emt 0:00:19]} 11. cxd4 {[%emt 0:00:43]} Be7 {[%emt 0:01:47]} 12. Nc3 {[%emt 0:01:11]} Be6 {[%emt 0:02:41]} 13. a3 {[%emt 0:06:54]} h6 {[%emt 0:11:04]} 14. h5 {[%emt 0:04:42]} Rd8 {[%emt 0:04:52]} 15. Ne2 {[%emt 0:19:23]} O-O {[%emt 0:11:49]} 16. Nf4 {[%emt 0:02:35]} Nb8 {[%emt 0:02:07]} 17. Re3 {[%emt 0:02:01]} Rfe8 {[%emt 0:02:16]} 18. Rb3 {[%emt 0:01:55]} Qc7 {[%emt 0:02:45]} 19. Ne1 {[%emt 0:04:38]} Nd7 {[%emt 0:00:51]} 20. Ned3 {[%emt 0:02:01]} Nf8 {[%emt 0:02:05]} 21. Be3 {[%emt 0:05:25]} b6 {[%emt 0:00:47]} 22. Rc1 {[%emt 0:01:03]} Qb7 {[%emt 0:01:58]} 23. Qf3 {[%emt 0:04:50]} Nh7 {[%emt 0:04:15]} 24. Nxe6 {[%emt 0:02:28]} fxe6 {[%emt 0:00:04]} 25. Rbc3 {[%emt 0:00:47]} Rc8 {[%emt 0:01:38]} 26. Qg3 {[%emt 0:04:31]} Bg5 {[%emt 0:01:33]} 27. Bxg5 {[%emt 0:02:16]} Nxg5 {[%emt 0:00:15]} 28. f3 {[%emt 0:00:25]} Rxc3 {[%emt 0:01:10]} 29. Rxc3 {[%emt 0:00:31]} Rc8 {[%emt 0:00:21]} 30. Qe1 {[%emt 0:01:20]} a5 {[%emt 0:02:19]} 31. a4 {[%emt 0:02:01]} Rc4 {[%emt 0:04:27]} 32. Rxc4 {[%emt 0:00:19]} dxc4 {[%emt 0:00:06]} 33. Nf4 {[%emt 0:00:26]} Qd7 {[%emt 0:01:36]} 34. Qd1 {[%emt 0:00:20]} Nf7 {[%emt 0:00:46]} 35. Ng6 {[%emt 0:07:15]} b5 {[%emt 0:01:51]} 36. axb5 {[%emt 0:00:55]} Qxb5 {[%emt 0:00:07]} 37. Qd2 {[%emt 0:01:39]} Qb4 {[%emt 0:03:18]} 38. Qc2 {[%emt 0:05:57]} a4 {[%emt 0:05:39]} 39. Nf4 {[%emt 0:02:03]} Qe1+ {[%emt 0:00:18]} 40. Kh2 {[%emt 0:00:16]} Qh4+ {[%emt 0:00:18]} 41. Nh3 {[%emt 0:00:15]} Qxd4 {[%emt 0:00:18]} 42. Qxa4 {[%emt 0:00:19]} Nxe5 {[%emt 0:08:57]} 43. Qe8+ {[%emt 0:00:46]} Kh7 {[%emt 0:00:06]} 44. Qxe6 {[%emt 0:02:19]} Qxb2 {[%emt 0:06:55]} 45. Qxf5+ {[%emt 0:00:36]} Kg8 {[%emt 0:00:15]} 46. Qc8+ {[%emt 0:01:56]} Kf7 {[%emt 0:05:42]} 47. Qc7+ {[%emt 0:12:45]} 1/2-1/2